[Event "SS Manhem Chess Week GM and IM tournaments 2018"]
[Site "Molnlycke kulturhus, Biblioteksgatan 2, Molnlycke, Sweden"]
[Date "2018.08.15"]
[Round "7.9"]
[White "Antonsen, Mikkel"]
[Black "Kucuksari, Kaan"]
[Result "1-0"]
[TimeControl "90 minutes for 40 moves + 30 minutes for the rest of the game + 30 seconds per move from move one."]
[WhiteTitle "IM"]
[BlackTitle "FM"]
[WhiteFideId "1401378"]
[BlackFideId "6380166"]
[WhiteElo "2444"]
[BlackElo "2329"]

1. d4 {[%clk 01:30:56]} {[%emt 00:00:03]} Nf6 {[%clk 01:30:47]} {[%emt
00:00:14]} 2. c4 {[%clk 01:31:19]} {[%emt 00:00:06]} e6 {[%clk 01:30:53]}
{[%emt 00:00:25]} 3. Nc3 {[%clk 01:30:23]} {[%emt 00:01:25]} Bb4 {[%clk
01:31:13]} {[%emt 00:00:11]} 4. Qc2 {[%clk 01:29:54]} {[%emt 00:00:58]} O-O
{[%clk 01:31:11]} {[%emt 00:00:32]} 5. Nf3 {[%clk 01:28:25]} {[%emt 00:01:59]}
c5 {[%clk 01:31:34]} {[%emt 00:00:08]} 6. dxc5 {[%clk 01:28:47]} {[%emt
00:00:08]} Na6 {[%clk 01:31:57]} {[%emt 00:00:06]} 7. g3 {[%clk 01:29:13]}
{[%emt 00:00:03]} Nxc5 {[%clk 01:32:24]} {[%emt 00:00:04]} 8. Bg2 {[%clk
01:29:40]} {[%emt 00:00:02]} Nce4 {[%clk 01:32:48]} {[%emt 00:00:06]} 9. O-O
{[%clk 01:30:05]} {[%emt 00:00:05]} Nxc3 {[%clk 01:32:55]} {[%emt 00:00:24]} 10.
bxc3 {[%clk 01:30:31]} {[%emt 00:00:05]} Be7 {[%clk 01:33:21]} {[%emt
00:00:03]} 11. e4 {[%clk 01:30:57]} {[%emt 00:00:04]} d6 {[%clk 01:33:47]}
{[%emt 00:00:04]} 12. e5 {[%clk 01:31:21]} {[%emt 00:00:05]} dxe5 {[%clk
01:34:11]} {[%emt 00:00:06]} 13. Nxe5 {[%clk 01:31:47]} {[%emt 00:00:04]} Qc7
{[%clk 01:34:36]} {[%emt 00:00:05]} 14. Qe2 {[%clk 01:32:08]} {[%emt 00:00:09]}
Nd7 {[%clk 01:33:51]} {[%emt 00:01:16]} 15. Bf4 {[%clk 01:31:33]} {[%emt
00:01:05]} Bd6 {[%clk 01:33:46]} {[%emt 00:00:36]} 16. Rfe1 {[%clk 01:31:33]}
{[%emt 00:00:30]} Nxe5 {[%clk 01:22:38]} {[%emt 00:11:37]} 17. Bxe5 {[%clk
01:31:50]} {[%emt 00:00:12]} Bxe5 {[%clk 01:23:04]} {[%emt 00:00:05]} 18. Qxe5
{[%clk 01:32:17]} {[%emt 00:00:04]} Qxe5 {[%clk 01:23:27]} {[%emt 00:00:07]} 19.
Rxe5 {[%clk 01:32:43]} {[%emt 00:00:04]} Rb8 {[%clk 01:18:30]} {[%emt
00:05:27]} 20. Ra5 {[%clk 01:22:02]} {[%emt 00:11:11]} Bd7 {[%clk 00:52:39]}
{[%emt 00:26:21]} 21. Rxa7 {[%clk 01:22:07]} {[%emt 00:00:25]} Bc6 {[%clk
00:45:46]} {[%emt 00:07:23]} 22. Bxc6 {[%clk 01:19:17]} {[%emt 00:03:20]} bxc6
{[%clk 00:46:14]} {[%emt 00:00:02]} 23. Rd1 {[%clk 01:19:39]} {[%emt 00:00:07]}
Rfd8 {[%clk 00:45:07]} {[%emt 00:01:38]} 24. Rxd8+ {[%clk 01:18:48]} {[%emt
00:01:21]} Rxd8 {[%clk 00:45:36]} {[%emt 00:00:01]} 25. Kf1 {[%clk 01:18:13]}
{[%emt 00:01:05]} g5 {[%clk 00:43:56]} {[%emt 00:02:10]} 26. Ke2 {[%clk
01:18:28]} {[%emt 00:00:16]} Kg7 {[%clk 00:41:31]} {[%emt 00:02:55]} 27. a4
{[%clk 01:18:34]} {[%emt 00:00:24]} Kf6 {[%clk 00:39:17]} {[%emt 00:02:44]} 28.
a5 {[%clk 01:08:49]} {[%emt 00:10:15]} Rb8 {[%clk 00:36:59]} {[%emt 00:02:47]}
29. Ke3 {[%clk 01:08:50]} {[%emt 00:00:29]} Rb2 {[%clk 00:33:20]} {[%emt
00:04:09]} 30. a6 {[%clk 00:45:21]} {[%emt 00:24:00]} Ra2 {[%clk 00:26:59]}
{[%emt 00:06:51]} 31. Kd4 {[%clk 00:44:12]} {[%emt 00:01:38]} Ra5 {[%clk
00:26:15]} {[%emt 00:01:14]} 32. Ra8 {[%clk 00:41:31]} {[%emt 00:03:11]} g4
{[%clk 00:15:02]} {[%emt 00:11:43]} 33. a7 {[%clk 00:39:19]} {[%emt 00:02:43]}
Kf5 {[%clk 00:12:28]} {[%emt 00:03:03]} 34. Rc8 {[%clk 00:35:04]} {[%emt
00:04:45]} Rxa7 {[%clk 00:12:42]} {[%emt 00:00:16]} 35. Rxc6 {[%clk 00:35:28]}
{[%emt 00:00:06]} Ra2 {[%clk 00:06:13]} {[%emt 00:06:57]} 36. c5 {[%clk
00:34:27]} {[%emt 00:01:32]} Rxf2 {[%clk 00:06:11]} {[%emt 00:00:32]} 37. Rd6
{[%clk 00:34:00]} {[%emt 00:00:57]} Rd2+ {[%clk 00:02:15]} {[%emt 00:04:26]} 38.
Kc4 {[%clk 00:34:10]} {[%emt 00:00:19]} Rb2 {[%clk 00:01:46]} {[%emt 00:00:59]}
39. c6 {[%clk 00:33:18]} {[%emt 00:01:22]} Rb8 {[%clk 00:02:06]} {[%emt
00:00:09]} 40. Kc5 {[%clk 00:33:13]} {[%emt 00:00:35]} Ke5 {[%clk 00:01:14]}
{[%emt 00:01:22]} 41. c7 {[%clk 00:31:40]} {[%emt 00:02:03]} 1-0

[Event "SS Manhem Chess Week GM and IM tournaments 2018"]
[Site "Molnlycke kulturhus, Biblioteksgatan 2, Molnlycke, Sweden"]
[Date "2018.08.15"]
[Round "7.10"]
[White "Ernst, Thomas"]
[Black "Nedilko, Vasily"]
[Result "0-1"]
[TimeControl "90 minutes for 40 moves + 30 minutes for the rest of the game + 30 seconds per move from move one."]
[WhiteTitle "GM"]
[BlackTitle "IM"]
[WhiteFideId "1700065"]
[BlackFideId "14101459"]
[WhiteElo "2346"]
[BlackElo "2369"]

1. e4 {[%clk 01:30:56]} {[%emt 00:00:03]} c5 {[%clk 01:30:55]} {[%emt
00:00:05]} 2. Nf3 {[%clk 01:31:08]} {[%emt 00:00:17]} d6 {[%clk 01:31:18]}
{[%emt 00:00:07]} 3. d4 {[%clk 01:31:30]} {[%emt 00:00:09]} cxd4 {[%clk
01:31:42]} {[%emt 00:00:06]} 4. Nxd4 {[%clk 01:31:55]} {[%emt 00:00:05]} Nf6
{[%clk 01:32:06]} {[%emt 00:00:06]} 5. Nc3 {[%clk 01:32:17]} {[%emt 00:00:07]}
a6 {[%clk 01:32:31]} {[%emt 00:00:06]} 6. Bg5 {[%clk 01:32:39]} {[%emt
00:00:08]} Nbd7 {[%clk 01:32:30]} {[%emt 00:00:31]} 7. f4 {[%clk 01:32:23]}
{[%emt 00:00:46]} g6 {[%clk 01:32:25]} {[%emt 00:00:35]} 8. Qf3 {[%clk
01:25:58]} {[%emt 00:06:55]} Bg7 {[%clk 01:31:59]} {[%emt 00:00:56]} 9. O-O-O
{[%clk 01:26:10]} {[%emt 00:00:18]} Qc7 {[%clk 01:21:10]} {[%emt 00:11:19]} 10.
Be2 {[%clk 01:20:19]} {[%emt 00:06:20]} h6 {[%clk 00:58:17]} {[%emt 00:23:24]}
11. Bh4 {[%clk 01:20:41]} {[%emt 00:00:08]} O-O {[%clk 00:58:24]} {[%emt
00:00:24]} 12. Rhe1 {[%clk 01:11:55]} {[%emt 00:09:15]} e5 {[%clk 00:50:25]}
{[%emt 00:08:29]} 13. fxe5 {[%clk 01:11:49]} {[%emt 00:00:36]} dxe5 {[%clk
00:50:38]} {[%emt 00:00:17]} 14. Nb3 {[%clk 01:11:53]} {[%emt 00:00:26]} b5
{[%clk 00:50:17]} {[%emt 00:00:52]} 15. a3 {[%clk 01:09:46]} {[%emt 00:02:36]}
Bb7 {[%clk 00:46:33]} {[%emt 00:04:14]} 16. Bd3 {[%clk 01:09:46]} {[%emt
00:00:29]} Rac8 {[%clk 00:40:26]} {[%emt 00:06:38]} 17. Rf1 {[%clk 01:07:53]}
{[%emt 00:02:22]} Qb6 {[%clk 00:40:10]} {[%emt 00:00:47]} 18. Bf2 {[%clk
01:04:10]} {[%emt 00:04:13]} Qe6 {[%clk 00:40:23]} {[%emt 00:00:17]} 19. Kb1
{[%clk 01:04:02]} {[%emt 00:00:36]} Rc7 {[%clk 00:33:59]} {[%emt 00:06:55]} 20.
h3 {[%clk 01:02:42]} {[%emt 00:01:50]} Rfc8 {[%clk 00:34:15]} {[%emt 00:00:15]}
21. Be1 {[%clk 01:02:45]} {[%emt 00:00:26]} Nb6 {[%clk 00:29:54]} {[%emt
00:04:51]} 22. Qe2 {[%clk 01:02:24]} {[%emt 00:00:50]} Nh5 {[%clk 00:26:57]}
{[%emt 00:03:28]} 23. g3 {[%clk 01:00:32]} {[%emt 00:02:22]} Qxh3 {[%clk
00:25:43]} {[%emt 00:01:45]} 24. Na5 {[%clk 00:59:50]} {[%emt 00:01:11]} Ba8
{[%clk 00:25:50]} {[%emt 00:00:23]} 25. Nd5 {[%clk 00:59:56]} {[%emt 00:00:24]}
Nxd5 {[%clk 00:24:06]} {[%emt 00:02:15]} 26. exd5 {[%clk 01:00:21]} {[%emt
00:00:05]} Bxd5 {[%clk 00:23:47]} {[%emt 00:00:49]} 27. Bxg6 {[%clk 00:59:56]}
{[%emt 00:00:55]} fxg6 {[%clk 00:22:34]} {[%emt 00:01:43]} 28. Rxd5 {[%clk
01:00:19]} {[%emt 00:00:07]} Rxc2 {[%clk 00:22:29]} {[%emt 00:00:35]} 0-1

[Event "SS Manhem Chess Week GM and IM tournaments 2018"]
[Site "Molnlycke kulturhus, Biblioteksgatan 2, Molnlycke, Sweden"]
[Date "2018.08.16"]
[Round "8.2"]
[White "Brynell, Stellan"]
[Black "Rozentalis, Eduardas"]
[Result "1/2-1/2"]
[TimeControl "90 minutes for 40 moves + 30 minutes for the rest of the game + 30 seconds per move from move one."]
[WhiteTitle "GM"]
[BlackTitle "GM"]
[WhiteFideId "1700219"]
[BlackFideId "12800023"]
[WhiteElo "2391"]
[BlackElo "2503"]

1. d4 {[%clk 01:30:52]} {[%emt 00:00:07]} Nf6 {[%clk 01:30:51]} {[%emt
00:00:09]} 2. c4 {[%clk 01:31:14]} {[%emt 00:00:08]} e6 {[%clk 01:31:02]}
{[%emt 00:00:20]} 3. Nf3 {[%clk 01:31:31]} {[%emt 00:00:12]} Bb4+ {[%clk
01:30:56]} {[%emt 00:00:36]} 4. Bd2 {[%clk 01:31:52]} {[%emt 00:00:09]} a5
{[%clk 01:30:49]} {[%emt 00:00:37]} 5. g3 {[%clk 01:31:29]} {[%emt 00:00:54]}
c5 {[%clk 01:30:39]} {[%emt 00:00:41]} 6. Bg2 {[%clk 01:26:07]} {[%emt
00:05:52]} cxd4 {[%clk 01:28:23]} {[%emt 00:02:46]} 7. Nxd4 {[%clk 01:25:30]}
{[%emt 00:01:07]} Nc6 {[%clk 01:28:43]} {[%emt 00:00:10]} 8. Nb5 {[%clk
01:16:20]} {[%emt 00:09:40]} d5 {[%clk 01:27:57]} {[%emt 00:01:16]} 9. O-O
{[%clk 01:07:13]} {[%emt 00:09:37]} dxc4 {[%clk 01:22:27]} {[%emt 00:06:00]} 10.
Bxb4 {[%clk 01:00:09]} {[%emt 00:07:34]} axb4 {[%clk 01:21:59]} {[%emt
00:00:58]} 11. Qxd8+ {[%clk 00:59:58]} {[%emt 00:00:42]} Kxd8 {[%clk 01:22:18]}
{[%emt 00:00:10]} 12. Nd2 {[%clk 00:59:48]} {[%emt 00:00:40]} Ke7 {[%clk
01:13:33]} {[%emt 00:09:15]} 13. Nxc4 {[%clk 00:59:33]} {[%emt 00:00:46]} Bd7
{[%clk 01:13:12]} {[%emt 00:00:49]} 14. Rfd1 {[%clk 00:52:13]} {[%emt
00:07:50]} Na5 {[%clk 01:05:19]} {[%emt 00:08:23]} 15. Nbd6 {[%clk 00:43:57]}
{[%emt 00:08:46]} Nxc4 {[%clk 00:59:45]} {[%emt 00:06:05]} 16. Nxc4 {[%clk
00:44:20]} {[%emt 00:00:06]} Bb5 {[%clk 00:59:48]} {[%emt 00:00:27]} 17. Rac1
{[%clk 00:39:57]} {[%emt 00:04:53]} Rac8 {[%clk 00:50:18]} {[%emt 00:09:59]} 18.
Nb6 {[%clk 00:29:30]} {[%emt 00:10:59]} Rxc1 {[%clk 00:49:48]} {[%emt
00:01:01]} 19. Rxc1 {[%clk 00:29:58]} {[%emt 00:00:02]} Rd8 {[%clk 00:49:47]}
{[%emt 00:00:30]} 20. a4 {[%clk 00:26:21]} {[%emt 00:04:07]} bxa3 {[%clk
00:42:35]} {[%emt 00:07:43]} 21. bxa3 {[%clk 00:26:49]} {[%emt 00:00:02]} Bxe2
{[%clk 00:42:15]} {[%emt 00:00:50]} 22. Bxb7 {[%clk 00:20:26]} {[%emt
00:06:52]} Rd2 {[%clk 00:37:11]} {[%emt 00:05:34]} 23. a4 {[%clk 00:11:45]}
{[%emt 00:09:12]} Ra2 {[%clk 00:31:28]} {[%emt 00:06:12]} 24. h3 {[%clk
00:07:38]} {[%emt 00:04:36]} Ne8 {[%clk 00:26:10]} {[%emt 00:05:49]} 25. Kg2
{[%clk 00:06:57]} {[%emt 00:01:11]} g5 {[%clk 00:22:42]} {[%emt 00:03:57]} 26.
Bf3 {[%clk 00:04:21]} {[%emt 00:03:05]} Bxf3+ {[%clk 00:21:17]} {[%emt
00:01:56]} 27. Kxf3 {[%clk 00:04:50]} {[%emt 00:00:01]} f5 {[%clk 00:21:32]}
{[%emt 00:00:15]} 28. Ke3 {[%clk 00:02:37]} {[%emt 00:02:43]} h5 {[%clk
00:19:48]} {[%emt 00:02:15]} 29. f3 {[%clk 00:01:58]} {[%emt 00:01:08]} Nf6
{[%clk 00:12:56]} {[%emt 00:07:22]} 30. Rc7+ {[%clk 00:01:58]} {[%emt
00:00:31]} Kd6 {[%clk 00:12:44]} {[%emt 00:00:42]} 31. Rf7 {[%clk 00:02:09]}
{[%emt 00:00:19]} Nd5+ {[%clk 00:10:55]} {[%emt 00:02:19]} 32. Nxd5 {[%clk
00:02:33]} {[%emt 00:00:06]} Ra3+ {[%clk 00:09:18]} {[%emt 00:02:08]} 33. Ke2
{[%clk 00:01:42]} {[%emt 00:01:21]} Kxd5 {[%clk 00:09:42]} {[%emt 00:00:06]} 34.
Rg7 {[%clk 00:00:43]} {[%emt 00:01:28]} Ra2+ {[%clk 00:04:04]} {[%emt
00:06:08]} 35. Ke3 {[%clk 00:00:49]} {[%emt 00:00:24]} f4+ {[%clk 00:03:17]}
{[%emt 00:01:17]} 36. gxf4 {[%clk 00:01:07]} {[%emt 00:00:12]} Ra3+ {[%clk
00:03:44]} {[%emt 00:00:04]} 37. Ke2 {[%clk 00:00:59]} {[%emt 00:00:38]} gxf4
{[%clk 00:04:02]} {[%emt 00:00:12]} 38. Rd7+ {[%clk 00:01:04]} {[%emt
00:00:25]} Ke5 {[%clk 00:03:52]} {[%emt 00:00:41]} 39. Ra7 {[%clk 00:00:35]}
{[%emt 00:00:58]} h4 {[%clk 00:03:40]} {[%emt 00:00:41]} 40. Ra8 {[%clk
00:00:42]} {[%emt 00:00:23]} Re3+ {[%clk 00:02:43]} {[%emt 00:01:27]} 41. Kf2
{[%clk 00:01:01]} {[%emt 00:00:11]} Rc3 {[%clk 00:01:47]} {[%emt 00:01:26]} 42.
Ke2 {[%clk 00:01:11]} {[%emt 00:00:20]} Ra3 {[%clk 00:02:08]} {[%emt 00:00:10]}
43. Ra7 {[%clk 00:27:54]} {[%emt 00:03:47]} Kd4 {[%clk 00:27:25]} {[%emt
00:05:12]} 1/2-1/2

[Event "SS Manhem Chess Week GM and IM tournaments 2018"]
[Site "Molnlycke kulturhus, Biblioteksgatan 2, Molnlycke, Sweden"]
[Date "2018.08.16"]
[Round "8.3"]
[White "Johansson, Linus"]
[Black "Gritsak, Orest"]
[Result "1/2-1/2"]
[TimeControl "90 minutes for 40 moves + 30 minutes for the rest of the game + 30 seconds per move from move one."]
[WhiteTitle "IM"]
[BlackTitle "GM"]
[WhiteFideId "1711113"]
[BlackFideId "14102188"]
[WhiteElo "2457"]
[BlackElo "2464"]

1. d4 {[%clk 01:30:56]} {[%emt 00:00:03]} d6 {[%clk 01:30:08]} {[%emt
00:00:52]} 2. Nf3 {[%clk 01:31:11]} {[%emt 00:00:15]} g6 {[%clk 01:29:58]}
{[%emt 00:00:40]} 3. g3 {[%clk 01:30:22]} {[%emt 00:01:19]} Bg7 {[%clk
01:25:31]} {[%emt 00:04:57]} 4. Bg2 {[%clk 01:30:46]} {[%emt 00:00:06]} Nd7
{[%clk 01:23:49]} {[%emt 00:02:13]} 5. O-O {[%clk 01:29:18]} {[%emt 00:01:58]}
e5 {[%clk 01:21:49]} {[%emt 00:02:30]} 6. e4 {[%clk 01:29:28]} {[%emt
00:00:20]} Ngf6 {[%clk 01:21:06]} {[%emt 00:01:13]} 7. Nc3 {[%clk 01:29:40]}
{[%emt 00:00:18]} O-O {[%clk 01:18:02]} {[%emt 00:03:35]} 8. h3 {[%clk
01:30:00]} {[%emt 00:00:09]} c6 {[%clk 01:14:47]} {[%emt 00:03:45]} 9. a4
{[%clk 01:29:58]} {[%emt 00:00:32]} a5 {[%clk 00:56:06]} {[%emt 00:19:10]} 10.
Bg5 {[%clk 01:28:40]} {[%emt 00:01:47]} h6 {[%clk 00:48:03]} {[%emt 00:08:34]}
11. Be3 {[%clk 01:28:52]} {[%emt 00:00:18]} Re8 {[%clk 00:47:22]} {[%emt
00:01:11]} 12. Qd2 {[%clk 01:24:39]} {[%emt 00:04:43]} Kh7 {[%clk 00:47:10]}
{[%emt 00:00:42]} 13. Rad1 {[%clk 01:24:24]} {[%emt 00:00:45]} b6 {[%clk
00:44:48]} {[%emt 00:02:53]} 14. Rfe1 {[%clk 01:22:45]} {[%emt 00:02:09]} Ba6
{[%clk 00:37:43]} {[%emt 00:07:35]} 15. Nh2 {[%clk 01:20:37]} {[%emt 00:02:37]}
Qc7 {[%clk 00:37:15]} {[%emt 00:00:58]} 16. Ng4 {[%emt 00:13:49]} h5 {[%clk
00:31:54]} {[%emt 00:05:25]} 17. Nxf6+ {[%clk 01:00:52]} {[%emt 00:07:23]} Nxf6
{[%clk 00:32:22]} {[%emt 00:00:01]} 18. d5 {[%clk 01:01:14]} {[%emt 00:00:08]}
c5 {[%clk 00:28:49]} {[%emt 00:04:03]} 19. Bf1 {[%clk 01:00:51]} {[%emt
00:00:53]} Bc8 {[%clk 00:26:50]} {[%emt 00:02:29]} 20. Kh2 {[%clk 00:59:51]}
{[%emt 00:01:29]} Ng8 {[%clk 00:26:10]} {[%emt 00:01:10]} 21. Bb5 {[%clk
00:59:06]} {[%emt 00:01:15]} Rf8 {[%clk 00:26:20]} {[%emt 00:00:20]} 22. Bc6
{[%clk 00:59:10]} {[%emt 00:00:26]} Rb8 {[%clk 00:26:45]} {[%emt 00:00:04]} 23.
f4 {[%clk 00:55:20]} {[%emt 00:04:19]} Qe7 {[%clk 00:27:11]} {[%emt 00:00:04]}
24. Rf1 {[%clk 00:48:59]} {[%emt 00:06:51]} f5 {[%clk 00:27:10]} {[%emt
00:00:32]} 25. fxe5 {[%clk 00:45:30]} {[%emt 00:03:59]} Bxe5 {[%clk 00:27:29]}
{[%emt 00:00:10]} 26. Bg5 {[%clk 00:45:43]} {[%emt 00:00:17]} Qg7 {[%clk
00:25:17]} {[%emt 00:02:43]} 27. exf5 {[%clk 00:38:00]} {[%emt 00:08:13]} Bxf5
{[%clk 00:24:56]} {[%emt 00:00:51]} 28. Rde1 {[%clk 00:38:06]} {[%emt
00:00:23]} Nh6 {[%clk 00:21:04]} {[%emt 00:04:23]} 29. Rxe5 {[%clk 00:28:10]}
{[%emt 00:10:26]} dxe5 {[%clk 00:19:51]} {[%emt 00:01:44]} 30. d6 {[%clk
00:28:05]} {[%emt 00:00:34]} Ng8 {[%clk 00:16:28]} {[%emt 00:03:53]} 31. Re1
{[%clk 00:23:25]} {[%emt 00:05:10]} Rf7 {[%clk 00:12:33]} {[%emt 00:04:25]} 32.
Bd5 {[%clk 00:18:51]} {[%emt 00:05:04]} Rd7 {[%clk 00:10:21]} {[%emt 00:02:42]}
33. Bc6 {[%clk 00:15:42]} {[%emt 00:03:39]} Rf7 {[%clk 00:10:50]} {[%emt
00:00:01]} 34. Bd5 {[%clk 00:15:58]} {[%emt 00:00:15]} Rd7 {[%clk 00:11:18]}
{[%emt 00:00:01]} 35. Bc6 {[%emt 00:02:49]} 1/2-1/2

[Event "SS Manhem Chess Week GM and IM tournaments 2018"]
[Site "Molnlycke kulturhus, Biblioteksgatan 2, Molnlycke, Sweden"]
[Date "2018.08.16"]
[Round "8.5"]
[White "Schneider, Stefan"]
[Black "Lindberg, Bengt"]
[Result "0-1"]
[TimeControl "90 minutes for 40 moves + 30 minutes for the rest of the game + 30 seconds per move from move one."]
[WhiteTitle "IM"]
[BlackTitle "IM"]
[WhiteFideId "1703013"]
[BlackFideId "1700359"]
[WhiteElo "2399"]
[BlackElo "2416"]

1. d4 {[%clk 01:30:49]} {[%emt 00:00:09]} Nf6 {[%clk 01:30:50]} {[%emt
00:00:11]} 2. c4 {[%clk 01:30:34]} {[%emt 00:00:45]} e6 {[%clk 01:31:11]}
{[%emt 00:00:08]} 3. Nf3 {[%clk 01:30:46]} {[%emt 00:00:19]} c5 {[%clk
01:31:11]} {[%emt 00:00:30]} 4. d5 {[%clk 01:30:33]} {[%emt 00:00:44]} d6
{[%clk 01:31:33]} {[%emt 00:00:07]} 5. Nc3 {[%clk 01:30:54]} {[%emt 00:00:09]}
exd5 {[%clk 01:31:55]} {[%emt 00:00:08]} 6. cxd5 {[%clk 01:31:12]} {[%emt
00:00:12]} g6 {[%clk 01:32:17]} {[%emt 00:00:07]} 7. Bf4 {[%clk 01:31:12]}
{[%emt 00:00:31]} a6 {[%clk 01:32:39]} {[%emt 00:00:08]} 8. a4 {[%clk
01:27:53]} {[%emt 00:03:49]} Bg7 {[%clk 01:32:57]} {[%emt 00:00:11]} 9. h3
{[%clk 01:21:19]} {[%emt 00:07:05]} O-O {[%clk 01:33:17]} {[%emt 00:00:09]} 10.
e3 {[%clk 01:21:24]} {[%emt 00:00:25]} Qe7 {[%clk 01:33:39]} {[%emt 00:00:08]}
11. Be2 {[%clk 01:10:37]} {[%emt 00:11:17]} Nfd7 {[%clk 01:33:47]} {[%emt
00:00:22]} 12. Bg5 {[%clk 01:04:57]} {[%emt 00:06:10]} Qe8 {[%clk 01:29:57]}
{[%emt 00:04:18]} 13. O-O {[%clk 01:01:37]} {[%emt 00:03:51]} f5 {[%clk
01:29:16]} {[%emt 00:01:11]} 14. Nd2 {[%clk 00:53:18]} {[%emt 00:08:51]} Ne5
{[%clk 01:29:24]} {[%emt 00:00:21]} 15. Bf4 {[%clk 00:50:44]} {[%emt 00:03:04]}
Nbd7 {[%clk 01:27:45]} {[%emt 00:02:08]} 16. Qc2 {[%clk 00:45:13]} {[%emt
00:06:03]} Qe7 {[%clk 01:11:03]} {[%emt 00:17:11]} 17. Rae1 {[%clk 00:44:15]}
{[%emt 00:01:29]} Rb8 {[%clk 01:07:29]} {[%emt 00:04:04]} 18. Bg3 {[%clk
00:37:37]} {[%emt 00:07:08]} Nf6 {[%clk 01:02:25]} {[%emt 00:05:32]} 19. f4
{[%clk 00:30:01]} {[%emt 00:08:08]} Nf7 {[%clk 01:02:26]} {[%emt 00:00:29]} 20.
Bd3 {[%clk 00:30:16]} {[%emt 00:00:15]} b5 {[%clk 00:58:06]} {[%emt 00:04:50]}
21. b3 {[%clk 00:23:11]} {[%emt 00:07:35]} Qd8 {[%clk 00:38:06]} {[%emt
00:20:29]} 22. e4 {[%clk 00:21:45]} {[%emt 00:01:56]} b4 {[%clk 00:34:25]}
{[%emt 00:04:11]} 23. Nd1 {[%clk 00:18:04]} {[%emt 00:04:12]} fxe4 {[%clk
00:34:48]} {[%emt 00:00:07]} 24. Bc4 {[%clk 00:16:27]} {[%emt 00:02:07]} Nh6
{[%clk 00:18:39]} {[%emt 00:16:39]} 25. Nxe4 {[%clk 00:15:34]} {[%emt
00:01:23]} Nxe4 {[%clk 00:19:01]} {[%emt 00:00:08]} 26. Qxe4 {[%clk 00:15:41]}
{[%emt 00:00:23]} Nf5 {[%clk 00:19:05]} {[%emt 00:00:25]} 27. Bf2 {[%clk
00:14:03]} {[%emt 00:02:08]} a5 {[%clk 00:18:53]} {[%emt 00:00:42]} 28. Qd3
{[%clk 00:11:21]} {[%emt 00:03:10]} Nd4 {[%clk 00:18:32]} {[%emt 00:00:53]} 29.
Qg3 {[%clk 00:05:58]} {[%emt 00:05:53]} Rb7 {[%clk 00:18:38]} {[%emt 00:00:22]}
30. Kh1 {[%clk 00:04:26]} {[%emt 00:02:03]} Rbf7 {[%clk 00:17:21]} {[%emt
00:01:46]} 31. Bxd4 {[%clk 00:02:35]} {[%emt 00:02:23]} Bxd4 {[%clk 00:17:44]}
{[%emt 00:00:07]} 32. Re6 {[%clk 00:02:50]} {[%emt 00:00:15]} Kh8 {[%clk
00:17:26]} {[%emt 00:00:47]} 33. Ne3 {[%clk 00:02:49]} {[%emt 00:00:32]} Rg7
{[%clk 00:13:47]} {[%emt 00:04:09]} 34. Qf3 {[%clk 00:01:38]} {[%emt 00:01:42]}
Qh4 {[%clk 00:05:08]} {[%emt 00:09:08]} 35. Ng4 {[%clk 00:00:35]} {[%emt
00:01:35]} Rgf7 {[%clk 00:04:35]} {[%emt 00:01:02]} 36. Qe4 {[%clk 00:00:54]}
{[%emt 00:00:12]} h5 {[%clk 00:01:48]} {[%emt 00:03:17]} 37. Nh2 {[%clk
00:00:39]} {[%emt 00:00:45]} Bxe6 {[%clk 00:00:44]} {[%emt 00:01:34]} 38. dxe6
{[%clk 00:00:52]} {[%emt 00:00:17]} Rxf4 {[%clk 00:01:03]} {[%emt 00:00:10]} 39.
Rxf4 {[%clk 00:00:37]} {[%emt 00:00:45]} Rxf4 {[%clk 00:01:32]} {[%emt
00:00:01]} 40. Qa8+ {[%clk 00:00:44]} {[%emt 00:00:24]} Kg7 {[%clk 00:01:09]}
{[%emt 00:00:51]} 41. Qb7+ {[%clk 00:18:56]} {[%emt 00:12:19]} Kh6 {[%clk
00:30:24]} {[%emt 00:01:14]} 42. Nf3 {[%clk 00:19:12]} {[%emt 00:00:15]} Qf2
{[%clk 00:28:41]} {[%emt 00:02:12]} 43. Kh2 {[%clk 00:09:06]} {[%emt 00:10:38]}
Rxf3 {[%clk 00:27:35]} {[%emt 00:01:35]} 44. Qxf3 {[%clk 00:09:02]} {[%emt
00:00:35]} Qg1+ {[%clk 00:27:53]} {[%emt 00:00:12]} 45. Kg3 {[%clk 00:09:27]}
{[%emt 00:00:04]} Qe1+ {[%clk 00:27:48]} {[%emt 00:00:36]} 46. Kh2 {[%clk
00:09:14]} {[%emt 00:00:43]} Bg1+ {[%clk 00:28:08]} {[%emt 00:00:10]} 47. Kh1
{[%clk 00:09:23]} {[%emt 00:00:21]} Bf2+ {[%clk 00:28:31]} {[%emt 00:00:07]}
0-1